bitfinex-derivatives/quotes_BTCF0:USTF0_20250320
["timestamp","ask_amount","ask_price","bid_price","bid_amount"]
[1742437629129,0.10027466,85900.0,85899.0,0.21375484]
[1742437630032,0.10027466,85900.0,85899.0,0.2018121]
[1742437630921,0.10027466,85900.0,85899.0,0.21336631]
[1742437631234,0.10027466,85900.0,85899.0,0.3173721]
[1742437631430,0.00017466,85900.0,85899.0,0.3173721]
[1742437631634,4e-05,85914.0,85899.0,0.68566837]
[1742437631936,4e-05,85914.0,85913.0,1.9538969]
[1742437632142,6e-08,85918.0,85917.0,0.0930926]
[1742437632435,0.053,85934.0,85933.0,0.0930753]
[1742437632633,0.0522,85936.0,85935.0,0.0930731]
[1742437632837,0.053,85940.0,85939.0,0.0930688]
[1742437633236,0.053,85940.0,85939.0,1.5930688]
[1742437633431,0.053,85940.0,85939.0,1.6989688]
[1742437633632,0.1460677,85940.0,85939.0,0.1989688]
[1742437633832,0.053,85940.0,85910.0,0.06253785]
[1742437634036,0.0930807,85928.0,85927.0,0.11556]
[1742437634239,0.0930807,85928.0,85927.0,1.61556]
[1742437634539,0.0930807,85928.0,85927.0,1.7086418]
[1742437634733,0.0930807,85928.0,85927.0,0.2602418]
[1742437634931,0.2001807,85928.0,85927.0,0.2602418]
[1742437636140,0.0930828,85926.0,85924.0,0.0465425]
[1742437636336,0.0930828,85926.0,85925.0,0.09325805]
[1742437637441,0.0960828,85926.0,85925.0,0.09325805]
[1742437638035,0.003,85926.0,85925.0,0.09325805]
[1742437638238,0.003,85926.0,85925.0,0.19435805]
[1742437639040,0.003,85926.0,85925.0,0.45435805]
[1742437639727,0.003,85926.0,85925.0,0.55435805]
[1742437641829,0.003,85926.0,85925.0,2.05435805]
[1742437643036,0.003,85926.0,85925.0,2.53067805]
[1742437644130,0.003,85926.0,85925.0,2.63067805]
[1742437644641,4e-05,85931.0,85925.0,2.63067805]
[1742437644642,4e-05,85931.0,85930.0,0.0930785]
[1742437644840,4e-05,85931.0,85930.0,0.5030785]
[1742437645354,0.051,85947.0,85946.0,0.0930612]
[1742437646131,0.051,85947.0,85946.0,0.1999612]
[1742437647343,0.054,85947.0,85946.0,0.1999612]
[1742437648041,0.054,85947.0,85946.0,0.0930612]
[1742437648350,0.0930807,85928.0,85927.0,0.1861607]
[1742437648645,0.046536,85936.0,85927.0,0.1861607]
[1742437648646,0.0930771,85932.0,85931.0,0.0930753]
[1742437649638,0.0930785,85930.0,85929.0,0.0930789]
[1742437650949,0.0930785,85930.0,85929.0,0.1426789]
[1742437651139,0.0930785,85930.0,85929.0,0.1970789]
[1742437652146,0.40994001,85946.0,85945.0,0.0930623]
[1742437652352,0.4083,85946.0,85945.0,0.0930623]
[1742437652646,0.5013612,85946.0,85945.0,0.0930623]
[1742437653245,0.4093,85946.0,85945.0,0.0930623]
[1742437653450,0.4093,85946.0,85945.0,0.5030623]
[1742437653651,0.4093,85946.0,85945.0,2.0030623]
[1742437654044,0.5023612,85946.0,85945.0,2.0030623]
[1742437654351,0.5543612,85946.0,85945.0,2.0030623]
[1742437654549,0.1460612,85946.0,85945.0,1.9538623]
[1742437654745,0.1460612,85946.0,85945.0,0.3608]
[1742437655053,0.139609,85937.0,85936.0,0.0930709]
[1742437655254,0.139609,85937.0,85936.0,0.1436709]
[1742437655453,0.0996359,85937.0,85936.0,0.1939709]
[1742437656555,0.1006359,85937.0,85936.0,0.1939709]
[1742437656954,0.0541,85937.0,85936.0,0.1939709]
[1742437657152,0.1471709,85937.0,85936.0,0.1939709]
[1742437658548,0.1471709,85937.0,85936.0,1.6939709]
[1742437660252,0.0541,85937.0,85936.0,1.6939709]
[1742437660448,0.001,85937.0,85936.0,1.6939709]
[1742437662053,4e-05,85939.0,85938.0,0.0930698]
[1742437662248,4e-05,85939.0,85936.0,1.6474355]
[1742437662249,4e-05,85939.0,85936.0,0.0506]
[1742437662558,4e-05,85939.0,85925.0,0.00017455]
[1742437662559,0.0930828,85926.0,85925.0,0.00017455]
[1742437662863,0.0930828,85926.0,85925.0,0.09325845]
[1742437663055,0.0930828,85926.0,85925.0,0.00017455]
[1742437663663,0.5047828,85926.0,85925.0,0.00017455]
[1742437665354,0.5057828,85926.0,85925.0,0.00017455]
[1742437665761,0.1449828,85926.0,85925.0,0.09325845]
[1742437666066,0.001,85926.0,85925.0,0.09325845]
[1742437666266,0.001,85926.0,85925.0,0.52615845]
[1742437666457,0.001,85926.0,85925.0,2.02615845]
[1742437667268,0.001,85926.0,85925.0,2.25860435]
[1742437667658,0.001,85926.0,85925.0,2.03860435]
[1742437668058,4e-05,85927.0,85926.0,0.0930828]
[1742437668361,4e-05,85927.0,85926.0,0.5840828]
[1742437668767,4e-05,85927.0,85926.0,2.0840828]
[1742437669668,4e-05,85927.0,85926.0,2.0860828]
[1742437670567,4e-05,85927.0,85926.0,2.0870828]
[1742437671161,4e-05,85927.0,85926.0,1.9770828]
[1742437671359,0.0931218,85927.0,85926.0,1.9770828]
[1742437671565,4e-05,85927.0,85926.0,0.5925628]
[1742437671966,4e-05,85927.0,85926.0,2.0925628]
[1742437672772,0.0931218,85927.0,85926.0,1.9750828]
[1742437672973,0.0931218,85927.0,85926.0,1.8105628]
[1742437673166,4e-05,85927.0,85926.0,1.8095628]
[1742437677073,4e-05,85927.0,85926.0,2.0240828]
[1742437677267,0.0465355,85937.0,85936.0,0.0930709]
[1742437677662,0.046536,85936.0,85933.0,0.3608]
[1742437677874,0.0930742,85934.0,85933.0,0.3608]
[1742437678079,0.0930742,85934.0,85933.0,0.4538753]
[1742437678384,0.0930742,85934.0,85933.0,0.0930753]
[1742437678385,0.1956742,85934.0,85933.0,0.0930753]
[1742437680076,0.1956742,85934.0,85928.0,0.0930805]
[1742437680077,0.1396221,85929.0,85928.0,0.0930805]
[1742437680266,0.0930828,85926.0,85925.0,0.00017455]
[1742437680471,0.0930828,85926.0,85925.0,0.09325845]
[1742437681273,0.1514403,85928.0,85927.0,0.0930818]
[1742437682379,0.1514403,85928.0,85927.0,1.5930818]
[1742437682892,0.1514403,85928.0,85927.0,1.5]
[1742437683074,0.0930915,85918.0,85917.0,0.1396379]
[1742437683265,0.0930948,85916.0,85915.0,0.093094]
[1742437683467,0.0930948,85916.0,85915.0,1.593094]
[1742437683666,0.1442948,85916.0,85915.0,1.593094]
[1742437683874,0.1968948,85916.0,85915.0,1.593094]
[1742437684383,0.1038,85916.0,85915.0,1.593094]
[1742437684582,0.1038,85916.0,85915.0,1.698094]
[1742437684583,0.1968937,85916.0,85915.0,1.698094]
[1742437685672,0.1968937,85916.0,85915.0,1.699094]
[1742437685868,0.1038,85916.0,85915.0,1.699094]
[1742437686073,0.05,85921.0,85920.0,0.0930893]
[1742437686880,0.05,85921.0,85920.0,0.1967893]
[1742437687276,0.1430883,85921.0,85920.0,1.6967893]
[1742437687477,0.1430883,85921.0,85920.0,1.6440893]
[1742437688285,0.05,85921.0,85920.0,1.6440893]
[1742437690483,0.05,85921.0,85920.0,1.6450893]
[1742437691285,0.1430883,85921.0,85920.0,1.6440893]
[1742437693391,0.05,85921.0,85920.0,1.6440893]
[1742437693593,0.0513,85923.0,85922.0,0.0930872]
[1742437693981,0.1017,85923.0,85922.0,0.0930872]
[1742437694182,0.1947861,85923.0,85922.0,0.0930872]
[1742437705502,0.0930915,85918.0,85917.0,0.3608]
[1742437705704,0.0930915,85918.0,85917.0,0.5044926]
[1742437706509,0.1972915,85918.0,85917.0,0.5054926]
[1742437706706,0.1972915,85918.0,85917.0,0.5578926]
[1742437707210,0.1972915,85918.0,85917.0,0.1970926]
[1742437709307,0.1042,85918.0,85917.0,0.1970926]
[1742437709812,0.1972915,85918.0,85917.0,0.1970926]
[1742437714416,0.1972915,85918.0,85917.0,1.6970926]
[1742437714709,0.1972915,85918.0,85917.0,0.1970926]
[1742437715412,0.1972915,85918.0,85917.0,0.001]
[1742437715810,0.3127315,85918.0,85917.0,0.001]
[1742437716610,0.32442613,85918.0,85917.0,0.001]
[1742437717616,0.3331534,85918.0,85917.0,0.001]
[1742437724015,0.0931023,85908.0,85893.0,0.0931182]
[1742437724323,0.0931327,85883.0,85882.0,0.1396907]
[1742437725917,0.0931327,85883.0,85882.0,0.1862549]
[1742437726117,0.0931327,85883.0,85882.0,0.2914549]
[1742437726719,0.0931327,85883.0,85882.0,0.1517642]
[1742437727013,0.0931327,85883.0,85882.0,0.1983305]
[1742437727625,0.0931327,85883.0,85882.0,0.1993305]
[1742437732124,0.1464327,85883.0,85882.0,0.1993305]
[1742437734233,0.0533,85883.0,85882.0,0.1993305]
[1742437734434,0.10467905,85887.0,85884.0,0.0465637]
[1742437734733,0.10467905,85887.0,85886.0,0.0931262]
[1742437735131,0.10467905,85887.0,85886.0,0.1425262]
[1742437735725,0.15917905,85887.0,85886.0,0.1425262]
[1742437737824,0.15917905,85887.0,85886.0,0.1435262]
[1742437738432,0.1476259,85887.0,85886.0,0.1435262]
[1742437741243,0.0545,85887.0,85886.0,0.1435262]
[1742437742031,0.00017466,85891.0,85890.0,0.0931218]
[1742437742334,0.88388,85910.0,85909.0,0.0931013]
[1742437743834,0.9769802,85910.0,85909.0,0.0931013]
[1742437744035,0.0931013,85909.0,85908.0,0.0501]
[1742437744242,0.0931088,85902.0,85891.0,0.0516]
[1742437744443,0.0931088,85902.0,85899.0,0.0931117]
[1742437744736,0.0931088,85902.0,85900.0,0.0931107]
[1742437745339,0.0931088,85902.0,85901.0,0.09328456]
[1742437745645,0.0931088,85902.0,85890.0,0.1620006]
[1742437745646,0.1396806,85893.0,85892.0,0.0931192]
[1742437745934,0.5004806,85893.0,85892.0,0.0541]
[1742437746135,0.0465632,85886.0,85882.0,0.0508]
[1742437746334,0.0465679,85878.0,85874.0,0.3608]
[1742437746643,0.0931381,85875.0,85874.0,0.3608]
[1742437746831,0.10455605,85875.0,85874.0,0.3608]
[1742437747029,0.1862871,85872.0,85871.0,0.1397064]
[1742437748336,0.0425708,85872.0,85871.0,0.1397064]
[1742437748536,0.0465692,85875.0,85874.0,0.0931392]
[1742437749940,0.0465692,85875.0,85874.0,0.0961392]
[1742437750335,0.1015692,85875.0,85874.0,0.0961392]
[1742437750534,0.1015692,85875.0,85874.0,0.1001392]
[1742437751835,0.055,85875.0,85874.0,0.1001392]
[1742437752139,0.1481381,85875.0,85874.0,0.1001392]
[1742437754448,0.1481381,85875.0,85874.0,0.007]
[1742437754651,0.1481381,85875.0,85874.0,0.1001392]
[1742437754841,0.1481381,85875.0,85874.0,0.007]
[1742437755035,0.2010381,85875.0,85874.0,0.007]
[1742437755939,0.2010381,85875.0,85874.0,0.1001392]
[1742437758854,0.2010381,85875.0,85869.0,0.0465719]
[1742437758855,0.0931457,85868.0,85839.0,0.3608]
[1742437759048,0.0931457,85868.0,85855.0,0.1061]
[1742437759049,0.0931587,85856.0,85855.0,0.1061]
[1742437759240,0.10503427,85856.0,85855.0,0.1992598]
[1742437759655,0.10503427,85856.0,85855.0,0.1061]
[1742437759952,0.0931598,85855.0,85854.0,4e-05]
[1742437760151,0.1940598,85855.0,85854.0,0.0932009]
[1742437760344,0.1940598,85855.0,85854.0,0.0931609]
[1742437760849,0.1940598,85855.0,85854.0,0.1992609]
[1742437761050,0.1900598,85855.0,85854.0,0.1992609]
[1742437761750,0.1870598,85855.0,85854.0,0.1992609]
[1742437762347,0.1870598,85855.0,85854.0,0.2022609]
[1742437762547,0.0503,85855.0,85854.0,0.2022609]
[1742437762749,0.0465789,85857.0,85855.0,0.0931587]
[1742437763049,0.0931589,85856.0,85855.0,0.0931587]
[1742437763246,0.0931574,85858.0,85857.0,0.0931555]
[1742437763448,0.0931974,85858.0,85857.0,0.0931555]
[1742437763645,0.01175799,85858.0,85857.0,0.0931555]
[1742437764055,0.01175799,85858.0,85857.0,0.10481396]
[1742437764356,0.01171799,85858.0,85857.0,0.10481396]
[1742437764553,0.0931566,85858.0,85857.0,0.10481396]
[1742437765845,0.0931566,85858.0,85857.0,0.0931555]
[1742437766548,0.1439566,85858.0,85857.0,0.0971555]
[1742437766747,0.1964566,85858.0,85857.0,0.0971555]
[1742437767046,0.1439566,85858.0,85857.0,0.0971555]
[1742437767245,0.0931566,85858.0,85857.0,0.0971555]
[1742437769052,0.0931566,85858.0,85857.0,0.004]
[1742437769256,0.2518566,85858.0,85857.0,0.0971576]
[1742437769553,0.2518566,85858.0,85857.0,0.004]
[1742437771853,0.2518566,85858.0,85857.0,0.0971576]
[1742437773444,0.2518566,85858.0,85857.0,0.1506576]
[1742437773856,0.2518566,85858.0,85857.0,0.0575]
[1742437775859,0.6126566,85858.0,85857.0,0.0575]
[1742437776061,0.6126566,85858.0,85857.0,0.1506576]
[1742437776748,0.6126566,85858.0,85857.0,0.0575]
[1742437777149,0.6126566,85858.0,85857.0,0.1085]
[1742437782562,0.6126566,85858.0,85857.0,0.2016576]
[1742437783254,0.5077566,85858.0,85857.0,0.2016576]
[1742437783451,4e-05,85859.0,85857.0,0.2016576]
[1742437783656,4e-05,85859.0,85858.0,0.0931566]
[1742437783858,0.0931955,85859.0,85858.0,0.0931566]
[1742437784166,0.0931955,85859.0,85858.0,0.1979566]
[1742437784366,0.0931555,85859.0,85858.0,0.1979566]
[1742437784862,0.1995555,85859.0,85858.0,0.1979566]
[1742437786265,0.1995555,85859.0,85858.0,0.1048]
[1742437786461,0.1995555,85859.0,85858.0,0.0535]
[1742437787067,0.1995555,85859.0,85858.0,0.0555]
[1742437790860,0.1995555,85859.0,85858.0,0.005]
[1742437791057,0.1995555,85859.0,85857.0,4e-05]
[1742437791266,0.0931566,85858.0,85854.0,4e-05]
[1742437791466,0.0931642,85851.0,85850.0,0.0526]
[1742437792069,0.1976642,85851.0,85850.0,0.0526]
[1742437792270,0.1966642,85851.0,85850.0,0.1993652]
[1742437792465,0.1956642,85851.0,85850.0,0.1993652]
[1742437793061,0.1956642,85851.0,85850.0,0.2023652]
[1742437793262,0.1956642,85851.0,85850.0,0.2043652]
[1742437800377,0.3608,85852.0,85851.0,0.0931642]
[1742437800677,0.10129191,85861.0,85851.0,0.0931642]
[1742437800678,4e-05,85858.0,85856.0,0.1397354]
[1742437800981,0.0931966,85858.0,85857.0,0.1951576]
[1742437803778,0.0931966,85858.0,85857.0,0.102]
[1742437803980,0.0931674,85848.0,85839.0,0.0465885]
[1742437804186,0.4539674,85848.0,85844.0,0.0931713]
[1742437804380,0.4539674,85848.0,85846.0,0.0931692]
[1742437804682,0.4539674,85848.0,85847.0,0.05397466]
[1742437804880,0.5567674,85848.0,85847.0,0.05397466]
[1742437805874,0.5567674,85848.0,85847.0,0.05697466]
[1742437806374,0.5567674,85848.0,85847.0,0.15014316]
[1742437806883,0.5567674,85848.0,85847.0,0.20074316]
[1742437807183,0.5567674,85848.0,85847.0,0.25194316]
[1742437808176,0.5167398,85848.0,85847.0,0.25194316]
[1742437808377,0.4656398,85848.0,85847.0,0.25194316]
[1742437809676,0.4539674,85848.0,85847.0,0.25194316]
[1742437809981,0.3608,85848.0,85847.0,0.25194316]
[1742437810280,0.4539674,85848.0,85847.0,0.25194316]
[1742437811777,0.4539674,85848.0,85847.0,0.36734316]
[1742437812380,0.4539674,85848.0,85847.0,0.37886376]
[1742437812781,0.4539674,85848.0,85847.0,0.36734316]
[1742437814692,0.5038674,85848.0,85847.0,0.36734316]
[1742437814879,0.5038674,85848.0,85847.0,0.25194316]
[1742437815081,0.5038674,85848.0,85847.0,0.00317466]
[1742437815281,0.0931728,85843.0,85842.0,0.0931739]
[1742437815478,0.0931739,85842.0,85841.0,0.0931746]
[1742437815686,0.0931761,85840.0,85839.0,0.1460167]
[1742437816186,0.0931761,85840.0,85839.0,0.05284]
[1742437816187,0.4539761,85840.0,85839.0,0.05284]
[1742437816390,0.0931837,85833.0,85832.0,4e-05]
[1742437816578,0.4539837,85833.0,85832.0,4e-05]
[1742437817294,0.0931848,85832.0,85831.0,0.00017466]
[1742437817587,0.0931848,85832.0,85831.0,0.00021466]
[1742437817788,0.1999848,85832.0,85831.0,0.00021466]
[1742437818200,0.1999848,85832.0,85831.0,0.10761466]
[1742437818490,0.4104,85833.0,85831.0,0.10761466]
[1742437818491,0.4539848,85833.0,85831.0,0.20080056]
[1742437818690,0.1452848,85832.0,85831.0,0.10761466]
[1742437818896,0.1452848,85832.0,85831.0,0.20080056]
[1742437819079,0.1975848,85832.0,85831.0,0.20080056]
[1742437819484,0.1985848,85832.0,85831.0,0.20080056]
[1742437821484,0.1985848,85832.0,85831.0,0.25180056]
[1742437824585,0.001,85832.0,85831.0,0.25180056]
[1742437825393,0.0941848,85832.0,85831.0,0.25180056]
[1742437829796,0.1448848,85832.0,85831.0,0.25180056]
[1742437830697,0.001,85832.0,85831.0,0.25180056]
[1742437831688,0.001,85832.0,85831.0,0.53180056]
[1742437832400,0.001,85832.0,85831.0,0.25180056]
[1742437839705,0.001,85832.0,85831.0,0.36716056]
[1742437839901,0.001,85832.0,85831.0,0.14640056]
[1742437839902,0.2033848,85832.0,85831.0,0.14640056]
[1742437840099,0.2033848,85832.0,85831.0,0.00021466]
[1742437840303,0.2033848,85832.0,85831.0,0.00017466]
[1742437840704,0.2033848,85832.0,85831.0,0.09336056]
[1742437840905,0.001,85832.0,85831.0,0.09336056]
[1742437841105,0.0526,85840.0,85834.0,0.0465911]
[1742437841300,0.0526,85840.0,85839.0,0.0931772]
[1742437841301,0.1457761,85840.0,85839.0,0.0931772]
[1742437841612,0.0526,85840.0,85839.0,0.2085372]
[1742437842004,0.0526,85840.0,85839.0,0.2584372]
[1742437842308,0.0536,85840.0,85839.0,0.3104372]
[1742437842509,8e-05,85858.0,85849.0,0.0465831]
[1742437842701,0.1058,85857.0,85851.0,0.0931642]
[1742437842906,0.4539631,85852.0,85851.0,0.0931642]
[1742437843215,0.4539631,85852.0,85851.0,0.1950642]
[1742437843216,0.3608,85852.0,85851.0,0.1950642]
[1742437844104,0.3658,85852.0,85851.0,0.1950642]
[1742437844302,0.3658,85852.0,85851.0,1.6950642]
[1742437844504,0.4153,85852.0,85851.0,1.6950642]
[1742437844706,0.4203,85852.0,85851.0,0.1950642]
[1742437845613,0.0595,85852.0,85851.0,0.1950642]
[1742437845914,0.01,85852.0,85851.0,0.1950642]
[1742437846500,0.00017476,85860.0,85857.0,0.0931576]
[1742437846808,0.00017476,85860.0,85859.0,0.0931555]
[1742437847310,4e-05,85861.0,85860.0,0.0931544]
[1742437847807,4e-05,85861.0,85860.0,0.264413]
[1742437849607,4e-05,85861.0,85860.0,0.212613]
[1742437849807,0.05084,85861.0,85860.0,0.212613]
[1742437850115,0.05184,85861.0,85860.0,0.212613]
[1742437850914,0.1449933,85861.0,85860.0,0.212613]
[1742437851308,0.1449933,85861.0,85860.0,0.0931544]
[1742437851508,0.5057933,85861.0,85860.0,0.0931544]
[1742437851709,0.0931642,85851.0,85847.0,0.11532]
[1742437851911,0.4539642,85851.0,85848.0,0.1397501]
[1742437852218,0.4539642,85851.0,85850.0,0.09333996]
[1742437853321,0.4539642,85851.0,85850.0,0.09833996]
[1742437854912,0.46571152,85851.0,85850.0,0.09833996]
[1742437856117,0.0465899,85837.0,85830.0,0.0466329]
[1742437856322,0.0465899,85837.0,85825.0,0.0533]
[1742437856323,0.0931913,85826.0,85825.0,0.0533]
[1742437856515,0.0931913,85826.0,85825.0,0.0465953]
[1742437856822,0.0931913,85826.0,85821.0,0.2152183]
[1742437856823,0.0931956,85823.0,85822.0,0.0931948]
[1742437857213,0.2454956,85823.0,85822.0,0.0931948]
[1742437857413,0.2444956,85823.0,85822.0,0.0931948]
[1742437858014,0.6052956,85823.0,85822.0,0.0931948]
[1742437858215,0.6052956,85823.0,85822.0,0.1484948]
[1742437858424,0.6052956,85823.0,85822.0,0.1514948]
[1742437858618,0.6052956,85823.0,85822.0,0.2021948]
[1742437859423,0.5553945,85823.0,85822.0,0.2021948]
[1742437859825,0.5553945,85823.0,85822.0,0.1514948]
[1742437860220,0.0931989,85819.0,85818.0,4e-05]
[1742437860522,0.0932032,85815.0,85814.0,0.00017476]
[1742437860825,0.4540032,85815.0,85814.0,0.00017476]
[1742437861319,0.0466059,85807.0,85800.0,0.1]
[1742437861522,0.0932184,85801.0,85800.0,0.1932175]
[1742437862422,0.3608,85807.0,85806.0,0.093213]
[1742437863015,0.3608,85807.0,85806.0,1.593213]
[1742437863216,0.4540119,85807.0,85806.0,1.593213]
[1742437863421,0.4540119,85807.0,85806.0,0.093213]
[1742437864021,0.4520119,85807.0,85806.0,0.093213]
[1742437864218,0.5557119,85807.0,85806.0,0.093213]
[1742437864628,0.5557119,85807.0,85800.0,0.1]
[1742437864629,0.0932184,85801.0,85800.0,0.1932174]
[1742437864927,0.0912184,85801.0,85800.0,0.1932174]
[1742437865524,0.1931184,85801.0,85800.0,0.1932174]
[1742437869831,0.1019,85801.0,85800.0,0.1932174]
[1742437870021,0.1019,85801.0,85800.0,0.3454174]
[1742437872124,0.0518,85801.0,85800.0,0.3454174]
[1742437872734,0.0518,85801.0,85800.0,1.8454174]
[1742437873533,0.0537,85805.0,85804.0,0.0932152]
[1742437873833,0.3588,85807.0,85806.0,0.093213]
[1742437874440,0.3588,85807.0,85806.0,0.194613]
[1742437875643,0.00017476,85809.0,85808.0,0.0932108]
[1742437875944,0.3608,85824.0,85823.0,0.0931945]
[1742437876134,0.1397836,85831.0,85830.0,0.0931859]
[1742437876641,0.25794584,85831.0,85830.0,0.0931859]
[1742437877143,0.25794584,85831.0,85830.0,0.1971859]
[1742437877344,0.26294584,85831.0,85830.0,0.1971859]
[1742437879144,0.26694584,85831.0,85830.0,0.1971859]
[1742437879347,0.26194584,85831.0,85830.0,0.1971859]
[1742437879551,0.17275514,85831.0,85830.0,0.1971859]
[1742437879847,0.17175514,85831.0,85830.0,0.1971859]
[1742437880041,0.12416224,85831.0,85830.0,0.1971859]
[1742437880242,0.006,85831.0,85830.0,0.1971859]
[1742437880451,0.0931945,85823.0,85822.0,0.11553476]
[1742437880636,0.0931945,85823.0,85822.0,0.20873036]
[1742437880840,0.0931945,85823.0,85822.0,0.09337036]
[1742437882046,0.245493,85825.0,85824.0,0.0931935]
[1742437882247,0.0506,85825.0,85824.0,0.0931935]
[1742437882444,0.0991873,85831.0,85830.0,0.0931869]
[1742437882743,0.1488873,85831.0,85830.0,0.0931869]
[1742437882949,0.003,85831.0,85830.0,0.0931869]
[1742437883133,0.003,85831.0,85830.0,0.1953869]
[1742437883537,0.09335306,85839.0,85838.0,0.0931783]
[1742437883735,0.19779306,85839.0,85838.0,0.0931783]
[1742437883948,0.19779306,85839.0,85838.0,0.1950783]
[1742437884136,0.10461476,85839.0,85838.0,0.1950783]
[1742437884447,0.00017476,85839.0,85838.0,0.1950783]
[1742437884945,0.19775196,85839.0,85838.0,0.1950783]
[1742437886138,0.20175196,85839.0,85838.0,0.1950783]
[1742437886648,0.20475196,85839.0,85838.0,0.1950783]
[1742437886852,0.20475196,85839.0,85838.0,0.051]
[1742437887041,0.20475196,85839.0,85832.0,0.1397762]
[1742437887042,0.0931837,85833.0,85832.0,0.1397762]
[1742437887347,0.0931837,85833.0,85832.0,0.2826605]
[1742437887539,0.0931837,85833.0,85832.0,0.3345605]
[1742437887941,0.1937837,85833.0,85832.0,0.3345605]
[1742437888548,0.1006,85833.0,85832.0,0.3345605]
[1742437888746,0.1967837,85833.0,85832.0,0.3345605]
[1742437889248,0.003,85833.0,85832.0,0.3345605]
[1742437889645,0.006,85833.0,85832.0,0.3345605]
[1742437890049,0.005,85833.0,85832.0,0.3345605]
[1742437890352,0.003,85833.0,85832.0,0.3345605]
[1742437891142,0.002,85833.0,85832.0,0.3345605]
[1742437891450,0.003,85833.0,85832.0,0.3345605]
[1742437891655,0.001,85833.0,85832.0,0.3345605]
[1742437891851,0.003,85833.0,85832.0,0.3345605]
[1742437892345,0.001,85833.0,85832.0,0.3345605]
[1742437892543,0.0961837,85833.0,85832.0,0.3345605]
[1742437893348,0.2000837,85833.0,85832.0,0.3345605]
[1742437894242,0.1069,85833.0,85832.0,0.3345605]
[1742437894549,0.003,85833.0,85832.0,0.3345605]
[1742437894953,0.001,85833.0,85832.0,0.3345605]
[1742437895150,0.0931787,85838.0,85837.0,0.0931793]
[1742437895451,0.1431787,85838.0,85837.0,0.0931793]
[1742437896160,0.05,85838.0,85837.0,0.1949793]
[1742437896458,0.053,85838.0,85837.0,0.1949793]
[1742437896854,0.003,85838.0,85837.0,0.1949793]
[1742437897455,0.1992783,85838.0,85837.0,0.1949793]
[1742437897661,0.2497783,85838.0,85837.0,0.1949793]
[1742437897850,0.2527783,85838.0,85837.0,0.1949793]
[1742437898853,0.2547783,85838.0,85837.0,0.1453793]
[1742437899357,0.2547783,85838.0,85837.0,0.0931793]
[1742437901365,0.2537783,85838.0,85837.0,0.0931793]
[1742437902164,0.2537783,85838.0,85837.0,0.1451793]
[1742437902665,0.2527783,85838.0,85837.0,0.1451793]
[1742437905668,0.2507783,85838.0,85837.0,0.1451793]
[1742437905862,0.1616,85838.0,85835.0,0.11532]
[1742437906062,0.1616,85838.0,85835.0,4e-05]
[1742437906063,0.0931804,85836.0,85835.0,4e-05]
[1742437907060,0.0931804,85836.0,85835.0,0.0932215]
[1742437907363,0.0931815,85835.0,85834.0,0.093182]
[1742437907559,0.1470815,85835.0,85834.0,0.093182]
[1742437907957,0.1986815,85835.0,85834.0,0.093182]
[1742437908154,0.1986815,85835.0,85834.0,0.145182]
[1742437908361,0.0931826,85834.0,85833.0,4e-05]
[1742437908758,0.1986826,85834.0,85833.0,4e-05]
[1742437909362,0.0931859,85831.0,85830.0,0.0931866]
[1742437909570,0.093188,85829.0,85828.0,0.0931883]
[1742437910267,0.0931935,85824.0,85823.0,0.1451913]
[1742437910570,0.0931935,85824.0,85813.0,0.4074026]
[1742437910571,0.0931945,85823.0,85817.0,0.0932011]
[1742437910771,0.1997945,85823.0,85818.0,0.0931995]
[1742437910970,0.1997945,85823.0,85819.0,0.0931984]
[1742437911365,0.1997945,85823.0,85817.0,0.0932004]
[1742437911670,0.1997945,85823.0,85821.0,0.0931964]
[1742437911969,0.1997945,85823.0,85822.0,0.09337036]
[1742437912167,0.1997945,85823.0,85822.0,0.14677036]
[1742437912360,0.1997945,85823.0,85822.0,0.20007036]
[1742437912673,0.2017945,85823.0,85822.0,0.20007036]
[1742437913060,0.2047945,85823.0,85822.0,0.20007036]
[1742437913461,0.2017945,85823.0,85822.0,0.20007036]
[1742437913667,0.2037945,85823.0,85822.0,0.20007036]
[1742437916069,0.2027945,85823.0,85822.0,0.20007036]
[1742437916274,0.2047945,85823.0,85822.0,0.20007036]
[1742437916769,0.2047945,85823.0,85822.0,1.70007036]
[1742437919276,0.1116,85823.0,85822.0,1.70007036]
[1742437919776,0.2047945,85823.0,85822.0,0.20007036]
[1742437919967,0.1116,85823.0,85822.0,0.20007036]
[1742437920169,0.0585,85823.0,85822.0,0.20007036]
[1742437920564,0.0565,85823.0,85822.0,0.20007036]
[1742437920779,0.1506945,85823.0,85822.0,0.20007036]
[1742437921073,0.2550945,85823.0,85822.0,0.20007036]
[1742437922373,0.2520945,85823.0,85822.0,0.20007036]
[1742437922577,0.2540945,85823.0,85822.0,0.20007036]
[1742437923005,0.2520945,85823.0,85822.0,0.20007036]
[1742437923173,0.2033945,85823.0,85822.0,0.20007036]
[1742437923572,0.2043945,85823.0,85822.0,0.20007036]
[1742437926673,0.0981945,85823.0,85822.0,0.20007036]
[1742437926975,0.005,85823.0,85822.0,0.20007036]
[1742437927371,0.046591,85835.0,85822.0,0.20007036]
[1742437927372,0.02633934,85838.0,85830.0,0.0931869]
[1742437927571,0.0931834,85834.0,85830.0,0.0931869]
[1742437928075,0.0931839,85833.0,85830.0,0.0931869]
[1742437928281,0.4539859,85831.0,85830.0,0.1968869]
[1742437928880,0.5044859,85831.0,85830.0,0.1968869]
[1742437929478,0.51638076,85831.0,85830.0,0.1968869]
[1742437929669,0.51638076,85831.0,85830.0,0.1468869]
[1742437929868,0.0465934,85830.0,85826.0,0.1456898]
[1742437930069,0.0465934,85830.0,85828.0,0.0931891]
[1742437930070,0.0465945,85829.0,85828.0,0.0931891]
[1742437930282,0.0931945,85824.0,85823.0,0.1887891]
[1742437930490,0.4539945,85824.0,85823.0,0.2412891]
[1742437930680,0.5555945,85824.0,85823.0,0.2412891]
[1742437932675,0.5575945,85824.0,85823.0,0.2412891]
[1742437933181,0.5605945,85824.0,85823.0,0.2412891]
[1742437935982,0.005,85824.0,85823.0,0.2412891]
[1742437936883,0.3608,85831.0,85830.0,0.0931869]
[1742437937885,0.3608,85831.0,85830.0,0.1948869]
[1742437938088,0.3608,85831.0,85830.0,1.6948869]
[1742437938784,0.3638,85831.0,85830.0,1.6948869]
[1742437939884,0.3638,85831.0,85830.0,0.1442869]
[1742437939885,0.4569859,85831.0,85830.0,0.1442869]
[1742437940283,0.5564859,85831.0,85830.0,0.1442869]
[1742437941173,0.5564859,85831.0,85830.0,0.1975869]
[1742437941376,0.4633,85831.0,85830.0,0.1975869]
[1742437941782,0.5574859,85831.0,85830.0,0.1975869]
[1742437942574,0.5554859,85831.0,85830.0,0.1975869]
[1742437942781,0.5564859,85831.0,85830.0,0.1975869]
[1742437943489,0.5574859,85831.0,85830.0,0.1975869]